[Event "Late-Titled-Tuesday-Blitz-October-10-2023"]
[Site "Chess.com"]
[Date "2023.10.10"]
[Round "6"]
[White "Eloist"]
[Black "TheMagician"]
[Result "1-0"]
[WhiteElo "2439"]
[BlackElo "2212"]
[TimeControl "180+1"]
[EndTime "15:02:09 PDT"]
[Termination "Eloist won on time"]

1. e4 {[%clk 0:03:00.9]} 1... e5 {[%clk 0:02:51.3]} 2. Bc4 {[%clk 0:03:00]} 2...
Nf6 {[%clk 0:02:48.9]} 3. d3 {[%clk 0:03:00.3]} 3... d6 {[%clk 0:02:41.8]} 4.
Nf3 {[%clk 0:03:00.2]} 4... Be7 {[%clk 0:02:41.9]} 5. O-O {[%clk 0:03:00.2]}
5... O-O {[%clk 0:02:41.2]} 6. c3 {[%clk 0:03:00.3]} 6... c6 {[%clk 0:02:38.9]}
7. Bb3 {[%clk 0:02:59.8]} 7... Nbd7 {[%clk 0:02:32.7]} 8. Re1 {[%clk 0:03:00.1]}
8... Nc5 {[%clk 0:02:26.7]} 9. Bc2 {[%clk 0:03:00.2]} 9... Ne6 {[%clk
0:02:17.9]} 10. Nbd2 {[%clk 0:02:59.3]} 10... Nd7 {[%clk 0:01:59.3]} 11. Nf1
{[%clk 0:02:57.5]} 11... Ng5 {[%clk 0:01:52.4]} 12. d4 {[%clk 0:02:47.4]} 12...
Nxf3+ {[%clk 0:01:51.9]} 13. Qxf3 {[%clk 0:02:47.2]} 13... Bf6 {[%clk
0:01:49.5]} 14. Be3 {[%clk 0:02:43.2]} 14... Bg5 {[%clk 0:01:48.8]} 15. Rad1
{[%clk 0:02:41.9]} 15... a5 {[%clk 0:01:37.6]} 16. Rd2 {[%clk 0:02:06]} 16...
Bxe3 {[%clk 0:01:34.7]} 17. Nxe3 {[%clk 0:02:05.4]} 17... g6 {[%clk 0:01:24.2]}
18. Red1 {[%clk 0:02:02.8]} 18... Qe7 {[%clk 0:01:17.8]} 19. dxe5 {[%clk
0:01:38.7]} 19... Nxe5 {[%clk 0:00:52.1]} 20. Qg3 {[%clk 0:01:29.8]} 20... Be6
{[%clk 0:00:43.1]} 21. Rxd6 {[%clk 0:01:01.3]} 21... Nc4 {[%clk 0:00:41]} 22.
Nxc4 {[%clk 0:00:54.5]} 22... Bxc4 {[%clk 0:00:41.1]} 23. Rd7 {[%clk 0:00:52.5]}
23... Qe6 {[%clk 0:00:37]} 24. R1d6 {[%clk 0:00:46.4]} 24... Qe8 {[%clk
0:00:27.7]} 25. b3 {[%clk 0:00:43.9]} 25... Ba6 {[%clk 0:00:26.7]} 26. c4 {[%clk
0:00:37.2]} 26... a4 {[%clk 0:00:23.5]} 27. e5 {[%clk 0:00:35.5]} 27... axb3
{[%clk 0:00:22.9]} 28. axb3 {[%clk 0:00:35.3]} 28... f6 {[%clk 0:00:14.5]} 29.
e6 {[%clk 0:00:27.1]} 29... b5 {[%clk 0:00:05.3]} 30. Qh4 {[%clk 0:00:26.6]} 1-0

[Event "Late-Titled-Tuesday-Blitz-October-10-2023"]
[Site "Chess.com"]
[Date "2023.10.10"]
[Round "6"]
[White "arminmusovic"]
[Black "Arimin1329"]
[Result "1-0"]
[WhiteElo "2510"]
[BlackElo "2300"]
[TimeControl "180+1"]
[EndTime "15:02:14 PDT"]
[Termination "arminmusovic won on time"]

1. a3 {[%clk 0:02:57.9]} 1... g6 {[%clk 0:02:59]} 2. Nc3 {[%clk 0:02:58.8]} 2...
Bg7 {[%clk 0:02:59.4]} 3. e4 {[%clk 0:02:58.5]} 3... c5 {[%clk 0:02:57.7]} 4.
Bc4 {[%clk 0:02:58.4]} 4... e6 {[%clk 0:02:55.8]} 5. d3 {[%clk 0:02:59.1]} 5...
Ne7 {[%clk 0:02:55.9]} 6. Bg5 {[%clk 0:02:59.5]} 6... Nbc6 {[%clk 0:02:54.5]} 7.
Nge2 {[%clk 0:02:59.4]} 7... a6 {[%clk 0:02:53.5]} 8. Ba2 {[%clk 0:02:58.5]}
8... b5 {[%clk 0:02:46.6]} 9. O-O {[%clk 0:02:58.4]} 9... Bb7 {[%clk 0:02:47.2]}
10. f4 {[%clk 0:02:57]} 10... Qc7 {[%clk 0:02:41.9]} 11. Qd2 {[%clk 0:02:49.6]}
11... d6 {[%clk 0:02:32.3]} 12. Rae1 {[%clk 0:02:40.4]} 12... b4 {[%clk
0:02:24.6]} 13. axb4 {[%clk 0:02:36.4]} 13... cxb4 {[%clk 0:02:19.1]} 14. Nd1
{[%clk 0:02:36.4]} 14... a5 {[%clk 0:02:19.5]} 15. c3 {[%clk 0:02:20.1]} 15...
b3 {[%clk 0:02:13.1]} 16. Bb1 {[%clk 0:02:16.1]} 16... a4 {[%clk 0:02:13.3]} 17.
d4 {[%clk 0:02:14.1]} 17... d5 {[%clk 0:02:12.7]} 18. f5 {[%clk 0:02:06.8]}
18... dxe4 {[%clk 0:01:56.3]} 19. f6 {[%clk 0:02:00]} 19... O-O {[%clk
0:01:44.4]} 20. fxg7 {[%clk 0:01:56.8]} 20... Rfe8 {[%clk 0:01:41.3]} 21. Bxe4
{[%clk 0:01:49.5]} 21... a3 {[%clk 0:01:35.9]} 22. bxa3 {[%clk 0:01:48.8]} 22...
Rxa3 {[%clk 0:01:36.7]} 23. Bb1 {[%clk 0:01:39.5]} 23... Na5 {[%clk 0:01:27.3]}
24. Qf4 {[%clk 0:01:17.1]} 24... Qxf4 {[%clk 0:01:19.4]} 25. Nxf4 {[%clk
0:01:17.7]} 25... Nc4 {[%clk 0:00:59.3]} 26. Nd3 {[%clk 0:01:03.1]} 26... Nd5
{[%clk 0:00:52.4]} 27. Nc5 {[%clk 0:00:58.6]} 27... Bc6 {[%clk 0:00:39.3]} 28.
Bh6 {[%clk 0:00:58.2]} 28... Ra1 {[%clk 0:00:29.5]} 29. Bd3 {[%clk 0:00:39.1]}
29... b2 {[%clk 0:00:26.5]} 30. Nf2 {[%clk 0:00:25.6]} 30... Rxe1 {[%clk
0:00:18.5]} 31. Rxe1 {[%clk 0:00:26.5]} 31... Na3 {[%clk 0:00:16.1]} 32. Ng4
{[%clk 0:00:26.5]} 32... f5 {[%clk 0:00:11.8]} 33. Ne5 {[%clk 0:00:25.8]} 33...
Bb5 {[%clk 0:00:01.8]} 34. c4 {[%clk 0:00:25.1]} 1-0

[Event "Late-Titled-Tuesday-Blitz-October-10-2023"]
[Site "Chess.com"]
[Date "2023.10.10"]
[Round "6"]
[White "hellokostya"]
[Black "vladoboch"]
[Result "1-0"]
[WhiteElo "2640"]
[BlackElo "2465"]
[TimeControl "180+1"]
[EndTime "15:02:16 PDT"]
[Termination "hellokostya won by resignation"]

1. Nf3 {[%clk 0:03:00.9]} 1... c5 {[%clk 0:02:52.5]} 2. e4 {[%clk 0:02:58.3]}
2... Nc6 {[%clk 0:02:52.6]} 3. Bb5 {[%clk 0:02:57.6]} 3... e6 {[%clk 0:02:50.6]}
4. O-O {[%clk 0:02:57.2]} 4... Nge7 {[%clk 0:02:49.3]} 5. Re1 {[%clk 0:02:56.8]}
5... a6 {[%clk 0:02:49.4]} 6. Bf1 {[%clk 0:02:56.5]} 6... d5 {[%clk 0:02:50]} 7.
exd5 {[%clk 0:02:55.5]} 7... Nxd5 {[%clk 0:02:50.9]} 8. d4 {[%clk 0:02:54.5]}
8... Nf6 {[%clk 0:02:51.6]} 9. h3 {[%clk 0:02:50.9]} 9... Be7 {[%clk 0:02:49.6]}
10. Be3 {[%clk 0:02:49.1]} 10... cxd4 {[%clk 0:02:49.5]} 11. Nxd4 {[%clk
0:02:48.9]} 11... Bd7 {[%clk 0:02:48.8]} 12. Nb3 {[%clk 0:02:38.2]} 12... O-O
{[%clk 0:02:47]} 13. c4 {[%clk 0:02:36.7]} 13... Qc7 {[%clk 0:02:38.3]} 14. Nc3
{[%clk 0:02:35.8]} 14... Na5 {[%clk 0:02:01.8]} 15. Nd2 {[%clk 0:02:23.1]} 15...
Rfd8 {[%clk 0:02:00.6]} 16. Rb1 {[%clk 0:02:16.4]} 16... Bb4 {[%clk 0:01:24.3]}
17. Qc2 {[%clk 0:02:13.2]} 17... b5 {[%clk 0:01:15.9]} 18. a3 {[%clk 0:02:08.1]}
18... Bxc3 {[%clk 0:01:15.8]} 19. Qxc3 {[%clk 0:02:08.8]} 19... Nxc4 {[%clk
0:01:13.4]} 20. b3 {[%clk 0:01:42.2]} 20... Nd5 {[%clk 0:01:12.4]} 21. Qc1
{[%clk 0:01:29]} 21... Ncxe3 {[%clk 0:01:11.2]} 22. Qxc7 {[%clk 0:01:27.7]}
22... Nxc7 {[%clk 0:01:11.5]} 23. Rxe3 {[%clk 0:01:27.9]} 23... Bc6 {[%clk
0:01:06.6]} 24. Rc3 {[%clk 0:01:16.2]} 24... Rxd2 {[%clk 0:01:05.2]} 25. Rxc6
{[%clk 0:01:16.9]} 25... Nd5 {[%clk 0:01:03.4]} 26. Rbc1 {[%clk 0:01:16.5]}
26... g6 {[%clk 0:01:00.8]} 27. g3 {[%clk 0:01:13.3]} 27... Kg7 {[%clk
0:00:59.4]} 28. Bg2 {[%clk 0:01:12.8]} 28... a5 {[%clk 0:00:53.7]} 29. R6c5
{[%clk 0:01:10.7]} 29... b4 {[%clk 0:00:43.4]} 30. a4 {[%clk 0:01:05]} 30... Rd3
{[%clk 0:00:38.1]} 31. Bxd5 {[%clk 0:00:58.1]} 31... exd5 {[%clk 0:00:36.8]} 32.
Rb1 {[%clk 0:00:57.1]} 32... d4 {[%clk 0:00:34.4]} 33. Kf1 {[%clk 0:00:54.7]}
33... Rc3 {[%clk 0:00:32.5]} 34. Rd5 {[%clk 0:00:55.1]} 34... d3 {[%clk
0:00:32.7]} 35. h4 {[%clk 0:00:48.5]} 35... h5 {[%clk 0:00:30.2]} 36. Kg2 {[%clk
0:00:46.2]} 36... Kf6 {[%clk 0:00:24.4]} 37. Kf3 {[%clk 0:00:45.9]} 37... Re8
{[%clk 0:00:20.5]} 38. Kg2 {[%clk 0:00:35.4]} 38... Re4 {[%clk 0:00:13.4]} 39.
Kf3 {[%clk 0:00:29.5]} 39... d2+ {[%clk 0:00:09.2]} 40. Kxe4 {[%clk 0:00:27.3]}
1-0

[Event "Late-Titled-Tuesday-Blitz-October-10-2023"]
[Site "Chess.com"]
[Date "2023.10.10"]
[Round "6"]
[White "ItalianMachine"]
[Black "Mariia89"]
[Result "1-0"]
[WhiteElo "2411"]
[BlackElo "2074"]
[TimeControl "180+1"]
[EndTime "15:02:16 PDT"]
[Termination "ItalianMachine won on time"]

1. e4 {[%clk 0:03:00.9]} 1... c6 {[%clk 0:03:00]} 2. d4 {[%clk 0:02:58.8]} 2...
d5 {[%clk 0:03:00.9]} 3. e5 {[%clk 0:02:55.4]} 3... Bf5 {[%clk 0:03:00.7]} 4.
Nf3 {[%clk 0:02:52.6]} 4... e6 {[%clk 0:03:00.4]} 5. c4 {[%clk 0:02:52.9]} 5...
dxc4 {[%clk 0:02:55.5]} 6. Bxc4 {[%clk 0:02:53]} 6... Nd7 {[%clk 0:02:55.2]} 7.
Nc3 {[%clk 0:02:52.9]} 7... Nb6 {[%clk 0:02:52.3]} 8. Bb3 {[%clk 0:02:53.2]}
8... Bb4 {[%clk 0:02:43.7]} 9. O-O {[%clk 0:02:53.1]} 9... Bg4 {[%clk
0:02:37.7]} 10. Be3 {[%clk 0:02:50.6]} 10... Ne7 {[%clk 0:02:37]} 11. h3 {[%clk
0:02:50.5]} 11... Bh5 {[%clk 0:02:35.6]} 12. g4 {[%clk 0:02:50.5]} 12... Bg6
{[%clk 0:02:35.7]} 13. Ng5 {[%clk 0:02:40.1]} 13... Ned5 {[%clk 0:02:19.1]} 14.
Nge4 {[%clk 0:02:38.2]} 14... Nxc3 {[%clk 0:01:57.2]} 15. Nxc3 {[%clk
0:02:37.9]} 15... Bxc3 {[%clk 0:01:51.7]} 16. bxc3 {[%clk 0:02:37.8]} 16... Qh4
{[%clk 0:01:51.7]} 17. Qf3 {[%clk 0:02:37.3]} 17... h5 {[%clk 0:01:33.9]} 18.
Qg3 {[%clk 0:02:32.3]} 18... Qxg3+ {[%clk 0:01:29.8]} 19. fxg3 {[%clk
0:02:33.2]} 19... hxg4 {[%clk 0:01:30.4]} 20. hxg4 {[%clk 0:02:33.9]} 20...
O-O-O {[%clk 0:01:13.6]} 21. c4 {[%clk 0:02:32.9]} 21... Bd3 {[%clk 0:01:09.5]}
22. Rfc1 {[%clk 0:02:32.5]} 22... f6 {[%clk 0:01:04.4]} 23. exf6 {[%clk
0:02:04]} 23... gxf6 {[%clk 0:01:04.5]} 24. g5 {[%clk 0:01:47.5]} 24... Rh3
{[%clk 0:00:57.6]} 25. gxf6 {[%clk 0:01:10.2]} 25... Rdh8 {[%clk 0:00:56.4]} 26.
Kf2 {[%clk 0:01:05.2]} 26... Nd7 {[%clk 0:00:39.8]} 27. Bg5 {[%clk 0:00:55.8]}
27... R3h5 {[%clk 0:00:08.9]} 28. Bh4 {[%clk 0:00:51.3]} 28... Rf5+ {[%clk
0:00:06.7]} 29. Ke3 {[%clk 0:00:51.7]} 29... Nxf6 {[%clk 0:00:02.2]} 30. Kxd3
{[%clk 0:00:52.1]} 30... Rf3+ {[%clk 0:00:01.8]} 31. Ke2 {[%clk 0:00:52.5]}
31... Rf5 {[%clk 0:00:01.9]} 32. Rf1 {[%clk 0:00:52.7]} 32... Rf8 {[%clk
0:00:01.6]} 33. Rxf5 {[%clk 0:00:50.6]} 33... exf5 {[%clk 0:00:02.5]} 34. Rf1
{[%clk 0:00:50.3]} 34... Ne4 {[%clk 0:00:03.3]} 35. c5 {[%clk 0:00:47]} 35...
Kd7 {[%clk 0:00:03.3]} 36. Ke3 {[%clk 0:00:45.8]} 36... a5 {[%clk 0:00:02.6]}
37. g4 {[%clk 0:00:44.3]} 1-0

[Event "Late-Titled-Tuesday-Blitz-October-10-2023"]
[Site "Chess.com"]
[Date "2023.10.10"]
[Round "6"]
[White "Dannyyi"]
[Black "Noki102"]
[Result "1-0"]
[WhiteElo "2294"]
[BlackElo "2452"]
[TimeControl "180+1"]
[EndTime "15:02:22 PDT"]
[Termination "Dannyyi won by resignation"]

1. e4 {[%clk 0:03:00.9]} 1... e5 {[%clk 0:02:59.3]} 2. Nf3 {[%clk 0:03:00.8]}
2... Nc6 {[%clk 0:02:56.4]} 3. Bc4 {[%clk 0:03:01.2]} 3... Nf6 {[%clk
0:02:56.2]} 4. d3 {[%clk 0:03:00.6]} 4... Be7 {[%clk 0:02:50.8]} 5. O-O {[%clk
0:02:59.1]} 5... O-O {[%clk 0:02:51.3]} 6. a4 {[%clk 0:02:57.3]} 6... d6 {[%clk
0:02:48.8]} 7. Nc3 {[%clk 0:02:56.3]} 7... Kh8 {[%clk 0:02:49]} 8. Re1 {[%clk
0:02:52.5]} 8... Bg4 {[%clk 0:02:43.9]} 9. h3 {[%clk 0:02:51.5]} 9... Bh5 {[%clk
0:02:44.1]} 10. Be3 {[%clk 0:02:35.4]} 10... Qd7 {[%clk 0:02:42.6]} 11. Nd5
{[%clk 0:02:33.1]} 11... Nxd5 {[%clk 0:02:39.3]} 12. exd5 {[%clk 0:02:29]} 12...
Nd8 {[%clk 0:02:33.5]} 13. Nxe5 {[%clk 0:02:27.3]} 13... dxe5 {[%clk 0:02:19.4]}
14. Qxh5 {[%clk 0:02:26.2]} 14... f5 {[%clk 0:02:19.8]} 15. Bg5 {[%clk
0:01:57.4]} 15... Bd6 {[%clk 0:02:17.5]} 16. Bb5 {[%clk 0:01:48.8]} 16... Qf7
{[%clk 0:02:08.5]} 17. Qxf7 {[%clk 0:01:48.5]} 17... Nxf7 {[%clk 0:02:09.4]} 18.
Bd2 {[%clk 0:01:48.4]} 18... a6 {[%clk 0:02:09.3]} 19. Bc4 {[%clk 0:01:48.3]}
19... g5 {[%clk 0:02:03.1]} 20. b4 {[%clk 0:01:38]} 20... Kg7 {[%clk 0:02:01.7]}
21. b5 {[%clk 0:01:36.4]} 21... a5 {[%clk 0:01:59.5]} 22. b6 {[%clk 0:01:32.3]}
22... cxb6 {[%clk 0:01:56.2]} 23. Be3 {[%clk 0:01:31.2]} 23... Bb4 {[%clk
0:01:46.9]} 24. Reb1 {[%clk 0:01:24.2]} 24... Nd6 {[%clk 0:01:43.5]} 25. Bb3
{[%clk 0:01:21.3]} 25... Bc5 {[%clk 0:01:40.6]} 26. Bxg5 {[%clk 0:01:16.9]}
26... f4 {[%clk 0:01:36.3]} 27. Re1 {[%clk 0:01:10.6]} 27... Rf5 {[%clk
0:01:33.9]} 28. Bh4 {[%clk 0:01:03.5]} 28... Raf8 {[%clk 0:01:20.5]} 29. c3
{[%clk 0:00:46.1]} 29... Rh5 {[%clk 0:01:16]} 30. Be7 {[%clk 0:00:44.7]} 30...
Rf7 {[%clk 0:01:07.4]} 31. Bd1 {[%clk 0:00:25.2]} 31... Rh6 {[%clk 0:00:46.7]}
32. Bxd6 {[%clk 0:00:21]} 32... Rxd6 {[%clk 0:00:42.6]} 33. Rxe5 {[%clk
0:00:19]} 33... Kf6 {[%clk 0:00:38.5]} 34. d4 {[%clk 0:00:18.9]} 34... Rfd7
{[%clk 0:00:16]} 35. Re6+ {[%clk 0:00:17.5]} 35... Rxe6 {[%clk 0:00:15.4]} 36.
dxe6 {[%clk 0:00:18.4]} 36... Kxe6 {[%clk 0:00:15.8]} 37. dxc5 {[%clk 0:00:18]}
37... bxc5 {[%clk 0:00:14]} 38. Bg4+ {[%clk 0:00:17.6]} 1-0

[Event "Late-Titled-Tuesday-Blitz-October-10-2023"]
[Site "Chess.com"]
[Date "2023.10.10"]
[Round "6"]
[White "BeyondMadness"]
[Black "Bala-Afiada"]
[Result "1-0"]
[WhiteElo "2320"]
[BlackElo "1940"]
[TimeControl "180+1"]
[EndTime "15:02:27 PDT"]
[Termination "BeyondMadness won by resignation"]

1. d4 {[%clk 0:02:15.9]} 1... Nf6 {[%clk 0:02:58]} 2. c4 {[%clk 0:02:15.1]} 2...
e6 {[%clk 0:02:58.6]} 3. Nc3 {[%clk 0:02:14.8]} 3... d5 {[%clk 0:02:58.3]} 4.
cxd5 {[%clk 0:02:13.9]} 4... exd5 {[%clk 0:02:58.4]} 5. Bg5 {[%clk 0:02:14.6]}
5... Be7 {[%clk 0:02:58.1]} 6. Qc2 {[%clk 0:02:14.7]} 6... c6 {[%clk 0:02:54.7]}
7. e3 {[%clk 0:02:15.1]} 7... O-O {[%clk 0:02:54.2]} 8. Bd3 {[%clk 0:02:15.6]}
8... Re8 {[%clk 0:02:51.1]} 9. Bxf6 {[%clk 0:02:15.1]} 9... Bxf6 {[%clk
0:02:51.2]} 10. Bxh7+ {[%clk 0:02:15.1]} 10... Kh8 {[%clk 0:02:51.4]} 11. Nge2
{[%clk 0:02:15.1]} 11... Bg4 {[%clk 0:02:48.1]} 12. Bd3 {[%clk 0:02:13.8]} 12...
Nd7 {[%clk 0:02:47.1]} 13. O-O {[%clk 0:02:10.3]} 13... Rc8 {[%clk 0:02:44.3]}
14. Bf5 {[%clk 0:02:08.7]} 14... Bxf5 {[%clk 0:02:39.9]} 15. Qxf5 {[%clk
0:02:08]} 15... g6 {[%clk 0:02:39.9]} 16. Qd3 {[%clk 0:02:03.9]} 16... Kg7
{[%clk 0:02:40.4]} 17. b4 {[%clk 0:02:01]} 17... Rh8 {[%clk 0:02:40.3]} 18. b5
{[%clk 0:01:57.9]} 18... Qc7 {[%clk 0:02:32.9]} 19. h3 {[%clk 0:01:53.4]} 19...
Rh4 {[%clk 0:02:25.8]} 20. bxc6 {[%clk 0:01:49.5]} 20... bxc6 {[%clk 0:02:25.7]}
21. Rab1 {[%clk 0:01:48.7]} 21... Rch8 {[%clk 0:02:25.5]} 22. Ng3 {[%clk
0:01:45]} 22... Bd8 {[%clk 0:01:17.5]} 23. Qa6 {[%clk 0:01:38.5]} 23... Nb6
{[%clk 0:00:55.1]} 24. a4 {[%clk 0:01:27.4]} 24... Qd6 {[%clk 0:00:53]} 25. a5
{[%clk 0:01:22.6]} 25... Nc4 {[%clk 0:00:50.9]} 26. Rb7 {[%clk 0:01:13.7]} 26...
Bc7 {[%clk 0:00:41.8]} 27. Qxa7 {[%clk 0:01:06.9]} 27... Rc8 {[%clk 0:00:29.8]}
28. Qc5 {[%clk 0:00:57.6]} 28... Qxc5 {[%clk 0:00:27.2]} 29. dxc5 {[%clk
0:00:58.5]} 29... Nxa5 {[%clk 0:00:25.1]} 30. Ra7 {[%clk 0:00:55.2]} 30... Nb3
{[%clk 0:00:22.3]} 31. Na4 {[%clk 0:00:52.7]} 31... Nd2 {[%clk 0:00:21.4]} 32.
Rd1 {[%clk 0:00:51.2]} 32... Nc4 {[%clk 0:00:21.4]} 33. Ne2 {[%clk 0:00:44.8]}
33... Ne5 {[%clk 0:00:11.2]} 34. Nd4 {[%clk 0:00:44.1]} 34... Rh5 {[%clk
0:00:07]} 35. Nb6 {[%clk 0:00:43.2]} 35... Bxb6 {[%clk 0:00:05.8]} 36. cxb6
{[%clk 0:00:43.4]} 36... Rb8 {[%clk 0:00:06.1]} 37. b7 {[%clk 0:00:38.8]} 37...
Rhh8 {[%clk 0:00:04.9]} 38. Rc1 {[%clk 0:00:34.6]} 38... Rhd8 {[%clk 0:00:01.5]}
39. Nxc6 {[%clk 0:00:33.8]} 39... Nxc6 {[%clk 0:00:02.4]} 40. Rxc6 {[%clk
0:00:33.1]} 40... Rd7 {[%clk 0:00:03.1]} 41. Rb6 {[%clk 0:00:31.3]} 41... Rdxb7
{[%clk 0:00:03.5]} 42. Rbxb7 {[%clk 0:00:31.1]} 1-0

[Event "Late-Titled-Tuesday-Blitz-October-10-2023"]
[Site "Chess.com"]
[Date "2023.10.10"]
[Round "6"]
[White "topin8"]
[Black "GMJustin"]
[Result "1/2-1/2"]
[WhiteElo "2412"]
[BlackElo "2193"]
[TimeControl "180+1"]
[EndTime "15:02:32 PDT"]
[Termination "Game drawn by repetition"]

1. e4 {[%clk 0:03:00.9]} 1... e5 {[%clk 0:02:52.5]} 2. Nf3 {[%clk 0:03:00.7]}
2... Nc6 {[%clk 0:02:51.9]} 3. Bb5 {[%clk 0:03:01]} 3... a6 {[%clk 0:02:50.3]}
4. Ba4 {[%clk 0:03:00.3]} 4... Be7 {[%clk 0:02:44.7]} 5. O-O {[%clk 0:02:57.2]}
5... Nf6 {[%clk 0:02:43.5]} 6. d3 {[%clk 0:02:56.8]} 6... d6 {[%clk 0:02:37.2]}
7. Bd2 {[%clk 0:02:41.2]} 7... Bg4 {[%clk 0:02:28.9]} 8. h3 {[%clk 0:02:38.6]}
8... Bxf3 {[%clk 0:02:17.3]} 9. Qxf3 {[%clk 0:02:17.8]} 9... b5 {[%clk 0:02:15]}
10. Bb3 {[%clk 0:02:17.9]} 10... Nd4 {[%clk 0:02:15]} 11. Qd1 {[%clk 0:02:18.4]}
11... a5 {[%clk 0:02:08.1]} 12. c3 {[%clk 0:01:33.9]} 12... Nxb3 {[%clk
0:02:06.4]} 13. Qxb3 {[%clk 0:01:27.6]} 13... Rb8 {[%clk 0:02:01.2]} 14. a4
{[%clk 0:01:20]} 14... Qd7 {[%clk 0:01:01.5]} 15. axb5 {[%clk 0:01:03.9]} 15...
Qxb5 {[%clk 0:01:00.5]} 16. Qxb5+ {[%clk 0:00:56.5]} 16... Rxb5 {[%clk
0:01:00.8]} 17. b4 {[%clk 0:00:34.3]} 17... axb4 {[%clk 0:00:54.6]} 18. Ra8+
{[%clk 0:00:34.5]} 18... Bd8 {[%clk 0:00:53.5]} 19. cxb4 {[%clk 0:00:33.9]}
19... O-O {[%clk 0:00:46.7]} 20. Na3 {[%clk 0:00:28.4]} 20... Rb7 {[%clk
0:00:45]} 21. Nc4 {[%clk 0:00:19.3]} 21... Be7 {[%clk 0:00:36.1]} 22. Rxf8+
{[%clk 0:00:15.9]} 22... Kxf8 {[%clk 0:00:32.1]} 23. Ra1 {[%clk 0:00:16.8]}
23... Ke8 {[%clk 0:00:28.4]} 24. f3 {[%clk 0:00:12.6]} 24... Kd7 {[%clk
0:00:24.9]} 25. Kf2 {[%clk 0:00:12.9]} 25... h5 {[%clk 0:00:21.6]} 26. g4 {[%clk
0:00:09.9]} 26... hxg4 {[%clk 0:00:17.5]} 27. hxg4 {[%clk 0:00:09.7]} 27... g6
{[%clk 0:00:15.9]} 28. Ra6 {[%clk 0:00:09.7]} 28... Kc8 {[%clk 0:00:09]} 29. Ke2
{[%clk 0:00:09.1]} 29... Nd7 {[%clk 0:00:07.3]} 30. Na5 {[%clk 0:00:08.9]} 30...
Rb6 {[%clk 0:00:05.3]} 31. Ra8+ {[%clk 0:00:08.6]} 31... Rb8 {[%clk 0:00:05]}
32. Ra7 {[%clk 0:00:06.8]} 32... Rb6 {[%clk 0:00:04.1]} 33. Ra8+ {[%clk
0:00:06.6]} 33... Rb8 {[%clk 0:00:04]} 34. Ra7 {[%clk 0:00:05.9]} 34... Rb6
{[%clk 0:00:04]} 35. Ra8+ {[%clk 0:00:06.3]} 1/2-1/2

[Event "Late-Titled-Tuesday-Blitz-October-10-2023"]
[Site "Chess.com"]
[Date "2023.10.10"]
[Round "6"]
[White "BogdanDeac"]
[Black "Elsa167"]
[Result "0-1"]
[WhiteElo "3008"]
[BlackElo "2939"]
[TimeControl "180+1"]
[EndTime "15:02:33 PDT"]
[Termination "Elsa167 won on time"]

1. e4 {[%clk 0:03:00.9]} 1... e6 {[%clk 0:02:57.6]} 2. Qe2 {[%clk 0:02:59.5]}
2... Be7 {[%clk 0:02:54.9]} 3. e5 {[%clk 0:02:42.7]} 3... d6 {[%clk 0:02:46.4]}
4. d4 {[%clk 0:02:42.4]} 4... c5 {[%clk 0:02:33.2]} 5. Qg4 {[%clk 0:02:09.8]}
5... cxd4 {[%clk 0:02:16]} 6. Bb5+ {[%clk 0:01:48.2]} 6... Kf8 {[%clk
0:02:16.1]} 7. Qxd4 {[%clk 0:01:43.4]} 7... dxe5 {[%clk 0:02:05.7]} 8. Qxe5
{[%clk 0:01:39.9]} 8... Nd7 {[%clk 0:01:36.1]} 9. Qe2 {[%clk 0:01:24.4]} 9... a6
{[%clk 0:01:35.4]} 10. Bxd7 {[%clk 0:01:09]} 10... Bxd7 {[%clk 0:01:36.3]} 11.
Nf3 {[%clk 0:01:09.3]} 11... Bf6 {[%clk 0:00:38.6]} 12. O-O {[%clk 0:00:53.6]}
12... Ne7 {[%clk 0:00:37.6]} 13. Nbd2 {[%clk 0:00:48.7]} 13... Bc6 {[%clk
0:00:36.7]} 14. Ne4 {[%clk 0:00:47]} 14... Bxe4 {[%clk 0:00:29.1]} 15. Qxe4
{[%clk 0:00:47.9]} 15... Qd5 {[%clk 0:00:29.6]} 16. Qe2 {[%clk 0:00:47.2]} 16...
h6 {[%clk 0:00:18.4]} 17. Rd1 {[%clk 0:00:44.8]} 17... Qc6 {[%clk 0:00:16]} 18.
Bf4 {[%clk 0:00:14.8]} 18... Ng6 {[%clk 0:00:15.2]} 19. Be5 {[%clk 0:00:09.4]}
19... Kg8 {[%clk 0:00:05.1]} 20. Bxf6 {[%clk 0:00:05.9]} 20... gxf6 {[%clk
0:00:06]} 21. c3 {[%clk 0:00:05.9]} 21... Kg7 {[%clk 0:00:06.1]} 22. Rd4 {[%clk
0:00:05.7]} 22... Rhd8 {[%clk 0:00:05.6]} 23. g3 {[%clk 0:00:05.7]} 23... Rxd4
{[%clk 0:00:04.3]} 24. Nxd4 {[%clk 0:00:05.8]} 24... Qd5 {[%clk 0:00:04.9]} 25.
Rd1 {[%clk 0:00:04.3]} 25... Rd8 {[%clk 0:00:05.5]} 26. Rd3 {[%clk 0:00:03]}
26... Kg8 {[%clk 0:00:02.6]} 27. b3 {[%clk 0:00:01.3]} 27... e5 {[%clk
0:00:02.5]} 28. c4 {[%clk 0:00:01.5]} 28... Qd7 {[%clk 0:00:01.9]} 29. h4 {[%clk
0:00:01.9]} 29... exd4 {[%clk 0:00:02.1]} 30. Qe4 {[%clk 0:00:01.5]} 30... Ne5
{[%clk 0:00:02.3]} 31. Rd1 {[%clk 0:00:02]} 31... Qg4 {[%clk 0:00:01.8]} 0-1